Cogmind - Beta 12 @@@ ROGUE MODE // 2023.10.26 @ 20:07:26 Player: Figgis Result: Self-destructed Performance ------------- Evolutions (1) 500 Regions Visited (6) 1200 Robots Destroyed (13) 65 Value Destroyed (504) 504 Prototype IDs (23) 460 Alien Tech Used (0) 0 Bonus (200) 200 TOTAL SCORE: 2929 Bonus ------- Pacifist 200 Cogmind --------- Core Integrity 308/400 Matter 300/300 Energy 250/250 System Corruption 0% Temperature Cool (0) Movement Treading (240) Ox1 Location -8/Mines Parts ------- > --- POWER (1) -------- Ion Engine > --- PROPULSION (2) --- Light Treads Light Treads > --- UTILITY (3) ------ Heat Sink High-capacity Storage Unit Hardened Light Armor Plating > --- WEAPON (3) ------- Beam Rifle Assault Rifle Improved Light Cannon > --- INVENTORY (20) --- Improved Ion Engine Light Treads Light Treads Light Treads Carbon-fiber Leg Carbon-fiber Leg Utility Shielding Hardened Light Armor Plating Thief Drone Bay Army-in-a-Box (30/30) Spread Laser Improved Light Cannon Grenade Launcher Rocket Launcher Peak State ------------ > --- POWER ------------ Ion Engine > --- PROPULSION ------- Light Treads Light Treads > --- UTILITY ---------- Heat Sink High-capacity Storage Unit Hardened Light Armor Plating > --- WEAPON ----------- Beam Rifle Assault Rifle Improved Light Cannon > --- INVENTORY -------- Improved Ion Engine Light Treads Light Treads Light Treads Carbon-fiber Leg Carbon-fiber Leg Utility Shielding Hardened Light Armor Plating Thief Drone Bay Army-in-a-Box Spread Laser Improved Light Cannon Grenade Launcher Rocket Launcher [Rating: 20] Favorites ----------- Power Ion Engine Engine Ion Engine Propulsion Light Treads Treads Light Treads Utility Heat Sink Device Heat Sink Storage Small Storage Unit Protection Hardened Light Armor Plating Weapon Assault Rifle Energy Gun Beam Rifle Ballistic Gun Assault Rifle Ballistic Cannon Improved Light Cannon Build | -11 -10 -10 -9 -9 -9 -8 ------- Run | Jun Mat Min Mat Min Exi Min Slots Evolved 2 | . . . 2 . . . Power . | . . . . . . . Propulsion . | . . . . . . . Utility 1 | . . . 1 . . . Weapon 1 | . . . 1 . . . Parts Attached 18 | 3 3 . 9 2 1 . Power 2 | 1 . . 1 . . . Engine 2 | 1 . . 1 . . . Core . | . . . . . . . Reactor . | . . . . . . . Propulsion 2 | 2 . . . . . . Treads 2 | 2 . . . . . . Leg . | . . . . . . . Wheel . | . . . . . . . Hover . | . . . . . . . Flight . | . . . . . . . Utility 8 | . 1 . 4 2 1 . Device 1 | . . . 1 . . . Storage 4 | . 1 . . 2 1 . Processor . | . . . . . . . Hackware . | . . . . . . . Protection 3 | . . . 3 . . . Artifact . | . . . . . . . Weapon 6 | . 2 . 4 . . . Energy Gun 3 | . 1 . 2 . . . Energy Cannon . | . . . . . . . Ballistic Gun 2 | . 1 . 1 . . . Ballistic Cannon 1 | . . . 1 . . . Launcher . | . . . . . . . Special Weapon . | . . . . . . . Impact Weapon . | . . . . . . . Slashing Weapon . | . . . . . . . Piercing Weapon . | . . . . . . . Special Melee Weapon . | . . . . . . . Unidentified Prototypes . | . . . . . . . Parts Lost 2 | . . . 2 . . . Power . | . . . . . . . Propulsion . | . . . . . . . Utility 1 | . . . 1 . . . Weapon 1 | . . . 1 . . . Highest Loss Streak 1 | . . . 1 . . . To Critical Strikes . | . . . . . . . Average Slot Usage (%) 95 | . 80 85 95 100 100 . Engine 11 | . 14 14 11 11 11 . Treads 23 | . 28 28 22 22 22 . Device 7 | . . . 8 11 11 . Storage 11 | . 12 14 11 11 11 . Protection 8 | . . . 9 11 11 . Energy Gun 12 | . 12 14 15 11 11 . Ballistic Gun 12 | . 12 14 14 11 11 . Ballistic Cannon 6 | . . . 2 11 11 . Naked Turns . | . . . . . . . Heaviest Build 60 | 3 12 12 25 40 60 . Greatest Support 40 | 3 40 40 40 40 40 . Greatest Overweight (x) 1 | . . . . . 1 . Average Overweight (x) . | . . . . . . . Largest Inventory Capacity 20 | 5 8 8 8 15 20 . Average Capacity 13 | 5 7 8 8 14 19 . Most Carried 19 | 5 5 6 8 12 19 . Average Carried 10 | 3 3 3 7 11 17 . Final Capacity 20 | 5 8 8 8 15 20 20 Final Carried 19 | 5 3 6 8 12 19 19 Class Distribution -------------------- 71% | Tank 27% | Mutant Dominant Class ---------------- Mutant | -10/Materials Mutant | -10/Mines Tank | -9/Materials Tank | -9/Mines Tank | -9/Exiles Tank | -8/Mines Resources | -11 -10 -10 -9 -9 -9 -8 ----------- Run | Jun Mat Min Mat Min Exi Min Matter Collected 638 | 212 . 51 160 156 59 . Remotely . | . . . . . . . Salvage Created 585 | . . . 382 58 145 . Parts 29 | . . . 19 2 8 . Haulers Intercepted . | . . . . . . . Recyclers Shooed . | . . . . . . . Parts Field Recycled . | . . . . . . . Retrieved Matter . | . . . . . . . Parts Self-Destructed . | . . . . . . . Prevented . | . . . . . . . Kills | -11 -10 -10 -9 -9 -9 -8 ------- Run | Jun Mat Min Mat Min Exi Min Combat Hostiles Destroyed 12 | . . . 9 2 1 . Guns 9 | . . . 7 1 1 . Cannons 3 | . . . 2 1 . . Classes Destroyed 5 | . . . 3 1 1 . Builder 1 | . . . 1 . . . Grunt 6 | . . . 5 1 . . Duelist 1 | . . . . 1 . . Sentry 4 | . . . 4 . . . Hunter 1 | . . . . . 1 . Best Kill Streak 3 | . . . 3 2 1 . Combat Bots Only 3 | . . . 3 2 1 . Max Kills in Single Turn 2 | . . . 2 1 1 . Gunslinging . | . . . . . . . Exploded . | . . . . . . . Melee . | . . . . . . . Uniques/NPCs Destroyed . | . . . . . . . Combat | -11 -10 -10 -9 -9 -9 -8 -------- Run | Jun Mat Min Mat Min Exi Min Damage Taken 578 | . . . 463 115 . . Core 92 | . . . 61 31 . . Absorbed by Shields . | . . . . . . . Redirected to Shielding 26 | . . . 26 . . . Core Remaining (%) 100 | 100 . 100 . . . . Volleys Fired 44 | . 1 . 27 9 7 . Largest 3 | . 2 . 3 3 3 . Hottest 115 | . 70 . 115 115 115 . Shots Fired 125 | . 2 . 75 27 21 . Gun 95 | . 2 . 61 18 14 . Cannon 30 | . . . 14 9 7 . Launcher . | . . . . . . . Special . | . . . . . . . Kinetic 78 | . 1 . 45 18 14 . Thermal 47 | . 1 . 30 9 7 . Explosive . | . . . . . . . Electromagnetic . | . . . . . . . Robot Hit Streak 12 | . . . 10 10 12 . Robot Miss Streak 4 | . 2 . 4 2 2 . Penetration Max . | . . . . . . . Secondary Targets . | . . . . . . . Shots Hit Robots 79 | . . . 46 18 15 . Core Hits 25 | . . . 17 3 5 . Critical Kills . | . . . . . . . Critical Parts Destroyed . | . . . . . . . Critical Strikes 4 | . . . 2 2 . . Burn 3 | . . . 1 2 . . Blast 1 | . . . 1 . . . Melee Attacks . | . . . . . . . Impact . | . . . . . . . Slashing . | . . . . . . . Piercing . | . . . . . . . Sneak Attacks . | . . . . . . . Combat Hostiles . | . . . . . . . Follow-up Attacks . | . . . . . . . Damage Inflicted 1249 | . . . 686 297 266 . Guns 814 | . . . 481 163 170 . Cannons 435 | . . . 205 134 96 . Explosions . | . . . . . . . Melee . | . . . . . . . Ramming . | . . . . . . . Kinetic 811 | . . . 431 207 173 . Thermal 438 | . . . 255 90 93 . Explosive . | . . . . . . . Electromagnetic . | . . . . . . . Impact . | . . . . . . . Slashing . | . . . . . . . Piercing . | . . . . . . . Highest Corruption . | . . . . . . . Average Corruption . | . . . . . . . Corruption Purged . | . . . . . . . Corruption Blocked . | . . . . . . . Overload Shots . | . . . . . . . Overflow Damage 14 | . . . . 14 . . Projectiles 14 | . . . . 14 . . Explosions . | . . . . . . . Melee . | . . . . . . . Knockbacks 5 | . . . 2 3 . . Impact . | . . . . . . . Kinetic 5 | . . . 2 3 . . Secondary . | . . . . . . . Self-Inflicted Damage . | . . . . . . . Shots . | . . . . . . . Rammed . | . . . . . . . Targets Rammed . | . . . . . . . Kicked . | . . . . . . . Crushed . | . . . . . . . Highest Temperature 304 | . 9 . 304 236 92 . Average Temperature 87 | . 6 . 96 109 38 . Received Heat Transfer 243 | . . . 195 48 . . Effects 1 | . . . 1 . . . Interference 1 | . . . 1 . . . Siege Activations . | . . . . . . . Robots Corrupted . | . . . . . . . Combat Hostiles . | . . . . . . . Parts Fried . | . . . . . . . Impact Corruptions . | . . . . . . . Robots Melted . | . . . . . . . Combat Hostiles . | . . . . . . . Parts Melted 1 | . . . . 1 . . Heat Transferred 1334 | . . . 742 370 222 . Parts Sabotaged . | . . . . . . . Parts Stolen . | . . . . . . . Parts Stripped . | . . . . . . . Power Chain Reactions . | . . . . . . . Missiles Intercepted . | . . . . . . . Alert | -11 -10 -10 -9 -9 -9 -8 ------- Run | Jun Mat Min Mat Min Exi Min Peak Influence 162 | . . 8 162 63 . . Initial 63 | . . . . 63 . . Average 36 | . . . 83 40 . . Maximum Alert Level . | . . . . . . . Low Security (%) 100 | 100 100 100 100 100 . . Level 1 . | . . . . . . . Level 2 . | . . . . . . . Level 3 . | . . . . . . . Level 4 . | . . . . . . . Level 5 . | . . . . . . . High Security . | . . . . . . . Max Security . | . . . . . . . Squads Dispatched 2 | . 1 . 1 . . . Investigation . | . . . . . . . Extermination . | . . . . . . . Reinforcement 2 | . 1 . 1 . . . Assault . | . . . . . . . Garrison . | . . . . . . . Intercept . | . . . . . . . Searches Triggered . | . . . . . . . Construction Impeded . | . . . . . . . Haulers Reinforced . | . . . . . . . Active Scanning Responses . | . . . . . . . Cargo Convoy Interrupts . | . . . . . . . Stealth | -11 -10 -10 -9 -9 -9 -8 --------- Run | Jun Mat Min Mat Min Exi Min Distress Signals 2 | . . . 2 . . . Communications Jammed . | . . . . . . . Distress Signals . | . . . . . . . Times Spotted 15 | . 1 . 12 2 . . Peak Tracking Total 4 | . 1 . 4 2 . . Tactical Retreats . | . . . . . . . Traps | -11 -10 -10 -9 -9 -9 -8 ------- Run | Jun Mat Min Mat Min Exi Min Traps Triggered . | . . . . . . . Indirectly . | . . . . . . . Trap Hack Attempts . | . . . . . . . Triggered . | . . . . . . . Disarmed . | . . . . . . . Reprogrammed . | . . . . . . . Reused . | . . . . . . . Traps Extracted . | . . . . . . . Installed . | . . . . . . . Triggered . | . . . . . . . Machines | -11 -10 -10 -9 -9 -9 -8 ---------- Run | Jun Mat Min Mat Min Exi Min Machines Disabled . | . . . . . . . Max in Single Turn . | . . . . . . . Machines Repaired . | . . . . . . . Machines Sabotaged . | . . . . . . . Overloaded Fab Kills . | . . . . . . . Hacking | -11 -10 -10 -9 -9 -9 -8 --------- Run | Jun Mat Min Mat Min Exi Min Machines Accessed 6 | . . 1 3 1 1 . Terminals 4 | . . 1 3 . . . Fabricators . | . . . . . . . Repair Stations . | . . . . . . . Recycling Units . | . . . . . . . Scanalyzers . | . . . . . . . Garrison Access . | . . . . . . . Total Hacks 14 | . . 2 10 1 1 . Successful 7 | . . 1 4 1 1 . Failed 7 | . . 1 6 . . . Catastrophic 1 | . . . 1 . . . Database Lockouts . | . . . . . . . Manual 6 | . . 1 4 . 1 . Terminals 12 | . . 2 10 . . . Fabricators . | . . . . . . . Repair Stations . | . . . . . . . Recycling Units . | . . . . . . . Scanalyzers . | . . . . . . . Garrison Access . | . . . . . . . Terminal Hacks 7 | . . 1 4 1 1 . Robot Analysis 2 | . . . 2 . . . Open Door 1 | . . . . 1 . . Level Access Points 1 | . . 1 . . . . Alert Level 1 | . . . 1 . . . Zone Layout 1 | . . . 1 . . . EX-Prototype ID Bank 1 | . . . . . 1 . Fabricator Hacks . | . . . . . . . Repair Station Hacks . | . . . . . . . Recycling Unit Hacks . | . . . . . . . Scanalyzer . | . . . . . . . Garrison Access Hacks . | . . . . . . . Unauthorized Hacks . | . . . . . . . Terminals . | . . . . . . . Fabricators . | . . . . . . . Repair Stations . | . . . . . . . Recycling Units . | . . . . . . . Scanalyzers . | . . . . . . . Garrison Access . | . . . . . . . Data Cores Recovered . | . . . . . . . Used . | . . . . . . . Hacking Detections 4 | . . 1 3 . . . Full Trace Events . | . . . . . . . Feedback Events . | . . . . . . . Feedback Blocked . | . . . . . . . Robot Schematics Acquired . | . . . . . . . Robots Built . | . . . . . . . Authchips . | . . . . . . . Time . | . . . . . . . Total Robot Build Rating . | . . . . . . . Part Schematics Acquired . | . . . . . . . Parts Built . | . . . . . . . Authchips . | . . . . . . . Time . | . . . . . . . Total Part Build Rating . | . . . . . . . Parts Repaired . | . . . . . . . Time . | . . . . . . . Parts Recycled . | . . . . . . . Recycled Matter . | . . . . . . . Retrieved Matter . | . . . . . . . Retrieved Components . | . . . . . . . Parts Scanalyzed . | . . . . . . . Part Schematics Acquired . | . . . . . . . Parts Damaged . | . . . . . . . Bothacking | -11 -10 -10 -9 -9 -9 -8 ------------ Run | Jun Mat Min Mat Min Exi Min Used RIF Installer . | . . . . . . . Robots Hacked . | . . . . . . . Non-combat . | . . . . . . . Combat . | . . . . . . . Robot Hacks Applied . | . . . . . . . Relay Couplers Released . | . . . . . . . Fabnet Peak Effective % . | . . . . . . . Robots Rewired . | . . . . . . . Allies Hacked . | . . . . . . . Hacks Repelled . | . . . . . . . Allies | -11 -10 -10 -9 -9 -9 -8 -------- Run | Jun Mat Min Mat Min Exi Min Total Allies 3 | . . . . 3 . . Largest Group 3 | . . . . 3 3 . Highest-Rated Group 40 | . . . . 40 40 . Highest-Rated Ally 16 | . . . . 16 16 . Total Orders . | . . . . . . . Ally Attacks . | . . . . . . . Total Damage . | . . . . . . . Kills . | . . . . . . . Allies Corrupted . | . . . . . . . Allies Melted . | . . . . . . . Intel | -11 -10 -10 -9 -9 -9 -8 ------- Run | Jun Mat Min Mat Min Exi Min Robot Analysis Total 2 | . . . 2 . . . Derelict Logs Recovered 3 | . . 1 . 2 . . Drone Launches . | . . . . . . . Drone Recoveries . | . . . . . . . Exploration | -11 -10 -10 -9 -9 -9 -8 ------------- Run | Jun Mat Min Mat Min Exi Min Turns Passed 3606 | 32 93 786 610 932 1153 . Spaces Moved 1946 | 37 64 481 302 555 507 . Core 51 | 37 14 . . . . . Treads 1895 | . 50 481 302 555 507 . Legs . | . . . . . . . Wheels . | . . . . . . . Hover . | . . . . . . . Flight . | . . . . . . . Fastest Speed 50 | 50 50 160 160 160 160 . Average Speed 173 | 50 135 160 160 160 222 . Slowest Speed 240 | 50 160 160 160 160 240 . Overloaded Moves . | . . . . . . . Propulsion Burnouts . | . . . . . . . Robots Hopped . | . . . . . . . Cave-ins Triggered . | . . . . . . . Exploration Rate (%) 48 | 3 17 99 30 99 90 2 Regions Visited 6 Branch Regions 4 Pre-discovered Areas 1 | . . . . 1 . . Known Exits Taken 1 | . . 1 . . . . Unknown Exits Taken 5 | 1 1 . 1 1 1 . Scrap Searched 4 | . . 2 . 2 . . Spaces Dug . | . . . . . . . Terrain Destroyed . | . . . . . . . Melee . | . . . . . . . Projectile . | . . . . . . . AOE . | . . . . . . . Terrain Rammed . | . . . . . . . Walls Destroyed . | . . . . . . . Machines Disabled . | . . . . . . . Actions | -11 -10 -10 -9 -9 -9 -8 --------- Run | Jun Mat Min Mat Min Exi Min Total 2086 | 49 68 498 371 580 520 . Wait 44 | 2 . 15 19 8 . . Move 1940 | 36 63 480 301 554 506 . Hop . | . . . . . . . Pick Up 29 | 8 1 3 9 5 3 . Fast Attach 3 | . . . 3 . . . Attach 10 | 3 3 . 4 . . . Detach . | . . . . . . . Swap 5 | . . . 2 2 1 . Drop 9 | . . . 6 2 1 . Fire 44 | . 1 . 27 9 7 . Melee . | . . . . . . . Ram . | . . . . . . . Kick . | . . . . . . . Crush . | . . . . . . . Escape Stasis . | . . . . . . . Rewire 2 | . . . . . 2 . Trap . | . . . . . . . Miscellaneous . | . . . . . . . Route ------- -11/Junkyard -10/Materials -10/Mines (discovered 2 exits: *Mat x2) -9/Materials (discovered 2 exits: *Min / [*Sto]) -9/Mines (discovered 3 exits: [*Mat x2] / *Exi) -9/Exiles -8/Mines History --------- Turn | Location | Event 22 | -11/Junkyard | Discovered new exit (range 15) 33 | -11/Junkyard | Entered Materials 116 | -10/Materials | Discovered new exit (range 4) 126 | -10/Materials | Entered Mines 211 | -10/Mines | Discovered new exit (range 8) 311 | -10/Mines | Build established: Mutant 440 | -10/Mines | Discovered new exit (range 10) 449 | -10/Mines | Learned Materials trap positions 462 | -10/Mines | Identified exit to Materials 831 | -10/Mines | YI-UF0 nonchalantly dropped a Grenade Launcher on the ground 912 | -10/Mines | Entered Materials 912 | -9/Materials | Evolved 2 slots: Utility x1, Weapon x1 913 | -9/Materials | Loaded intel: 17 trap records 949 | -9/Materials | Discovered new exit (range 16) 1383 | -9/Materials | Discovered new exit (range 7) 1522 | -9/Materials | Entered Mines 1560 | -9/Mines | Learned Materials terminal intel 1562 | -9/Mines | Met a Derelict bent on vengeance 1588 | -9/Mines | Build established: Tank 1724 | -9/Mines | Received a Rocket Launcher from a helpful Derelict 1836 | -9/Mines | Found the Drone Emporium 1849 | -9/Mines | Found Prototype Device 2147 | -9/Mines | Discovered new exit (range 5) 2208 | -9/Mines | Learned location of Recycling (-9) 2310 | -9/Mines | Assisted by bots powering up and referring to "LRC-V3" 2366 | -9/Mines | Discovered new exit (range 5) 2448 | -9/Mines | Deemed a non-threat by the Exiles lab entrance 2448 | -9/Mines | Discovered new exit (range 5) 2454 | -9/Mines | Entered Exiles 2454 | -9/Exiles | Found Exiles lab destroyed 2454 | -9/Exiles | Accompanied by 3 allies 2628 | -9/Exiles | Opened EX-Vault 2641 | -9/Exiles | Found Army-in-a-Box 3581 | -9/Exiles | Discovered new exit (range 10) 3607 | -9/Exiles | Entered Mines 3607 | -8/Mines | Accompanied by 3 allies 3607 | -8/Mines | Self-destructed Last Messages --------------- Firepult YOLO Cannon AWS/Gauss XL Autogun Array AWS/Autocannon Field Lobotomy Kit Longsword +1 Deploy-a-Sentry 02640_ Dropped Lrg. Storage Unit. 02641_ Acquired Army-in-a-Box. 02753_ H-55 Commando destroyed. 02768_ Acquired Carbon-fiber Leg. 02769_ Acquired 24 matter. 02774_ Acquired Carbon-fiber Leg. 02854_ G-34 Mercenary destroyed. 02908_ P-60 Hacker destroyed. 02914_ Acquired 35 matter. 03581_ EXIT=FOUND LOCATION=UNKNOWN GOAL=ESCAPE Map ----- +----------------------------------------------------+ | | | | | | | | | | | | | | | | | ????????????????????????????????????????????????? | | ????????????????????????????????????????????????? | | ????????????????????????????????????????????????? | | ????????????????????????????????????????????????? | | ????????????????????????????????????????????????? | | ????????????????????????????????????????????????? | | ????????????????????????????????????????????????? | | ????????????????????????????????????????????????? | | ????????????????????????????????????????????????? | | ????????????????????????????????????????????????? | | ????????????????????????????????????????????????? | | ????????????????????????????????????????????????? | | ????????????????????????????????????????????????? | | ????????????????????????###?????????????????????? | | ????????????????????????# ?????????????????????? | | ????????????????????????# #?????????????????????? | | ??????????????????????### ###???????????????????? | | ??????????????????????#s @ #???????????????????? | | ?????????????????????# s ggg #??????????????????? | | ?????????????????????# s #??????????????????? | | ?????????????????????## ##??????????????????? | | ??????????????????????##### #???????????????????? | | ??????????????????????????? #???????????????????? | | ??????????????????????????? #???????????????????? | | ????????????????????????????#???????????????????? | | ????????????????????????????????????????????????? | | ????????????????????????????????????????????????? | | ????????????????????????????????????????????????? | | ????????????????????????????????????????????????? | | ????????????????????????????????????????????????? | | ????????????????????????????????????????????????? | | ????????????????????????????????????????????????? | | ????????????????????????????????????????????????? | | ????????????????????????????????????????????????? | | ????????????????????????????????????????????????? | | ????????????????????????????????????????????????? | | ????????????????????????????????????????????????? | | ????????????????????????????????????????????????? | | ????????????????????????????????????????????????? | | ????????????????????????????????????????????????? | | ????????????????????????????????????????????????? | | ????????????????????????????????????????????????? | +----------------------------------------------------+ Best States ------------- Heat Dissipation 38 Energy Generation 10 Energy Capacity 250 Matter Stores 300 Matter Capacity 300 Sight Range 16 Terrain Scan Density 10 Armor Coverage 150 Weapon Shielding 33 Evasion (%) 50 Recoil Reduction 2 Authchip Count 1 Item Schematics ----------------- None Robot Schematics ------------------ None Fabricated ------------ Nothing Alien Tech Used ----------------- None Achievements -------------- None Challenges ------------ None Game ------ Seed ShockConcussiveImmobilizer Manual? 0 Play Time 00:12:24 Cumulative 86.9 hours Start 2023.10.24 @ 18:06:13 End 2023.10.26 @ 20:07:26 Sessions 3 Manual Loads 0 Difficulty Rogue Special Mode None Game No. 147 Rogue 144 Adventurer 3 Explorer 0 Win Type - Total 0 Types 0/0/0/0/0/0/0/0/0 Lore% 35 Gallery% 53 Achievement% 38 Wizard Run 0 Options --------- ASCII 0 Keyboard 0 Movement Mouse Keybinds 0 Fullscreen 2 Font 18/SmallcapsGlow Map View 76x50 Tactical HUD 1 Map Filters NONE Filters NONE Steam 1 RUN: 7662c4c5-812e-4857-bbae-ebe9bfaa0b97